Cogmind - Beta 17.1 @@@ ROGUE MODE // 2026.09.15 @ 18:56:52 Player: Bean Result: Destroyed by MV-J44(R) with Subdweller Machine Gun Performance ------------- Evolutions (0) 0 Regions Visited (3) 600 Robots Destroyed (11) 55 Value Destroyed (227) 227 Prototype IDs (0) 0 Alien Tech Used (0) 0 Bonus (-139) -139 TOTAL SCORE: 743 Bonus ------- Friendly Fire -139 Cogmind --------- Core Integrity 0/250 Matter 262/300 Energy 100/100 System Corruption 9% Temperature Cool (65) Movement Core (50) Location -10/Subcaves Parts ------- > --- POWER (1) -------- (None) > --- PROPULSION (2) --- (None) > --- UTILITY (2) ------ (None) > --- WEAPON (2) ------- (None) > --- INVENTORY (5) ---- Ion Engine Ion Engine Improved Terrain Scanner Core Shielding Peak State ------------ > --- POWER ------------ Light Nuclear Core > --- PROPULSION ------- Wheel Wheel > --- UTILITY ---------- Small Storage Unit Core Shielding > --- WEAPON ----------- Assault Rifle Grenade Launcher > --- INVENTORY -------- Ion Engine Ion Engine Improved Terrain Scanner Improved Terrain Scanner Light Assault Rifle Light Assault Rifle [Rating: 10] Favorites ----------- Power Ion Engine Engine Ion Engine Power Core Light Nuclear Core Propulsion Wheel Wheel Wheel Utility Small Storage Unit Device Improved Terrain Scanner Storage Small Storage Unit Protection Light Armor Plating Weapon Assault Rifle Ballistic Gun Assault Rifle Launcher Grenade Launcher Build | -11 -10 -10 -10 ------- Run | Yrd Mat Min Sub Slots Evolved . | . . . . Power . | . . . . Propulsion . | . . . . Utility . | . . . . Weapon . | . . . . Parts Attached 13 | 7 1 4 1 Power 2 | 1 . 1 . Engine 1 | 1 . . . Core 1 | . . 1 . Reactor . | . . . . Propulsion 3 | 2 . 1 . Treads . | . . . . Leg . | . . . . Wheel 3 | 2 . 1 . Hover . | . . . . Flight . | . . . . Utility 4 | 2 1 1 . Device 1 | 1 . . . Storage 1 | 1 . . . Processor . | . . . . Hackware . | . . . . Protection 2 | . 1 1 . Artifact . | . . . . Weapon 4 | 2 . 1 1 Energy Gun . | . . . . Energy Cannon . | . . . . Ballistic Gun 3 | 2 . . 1 Ballistic Cannon . | . . . . Launcher 1 | . . 1 . Special Weapon . | . . . . Impact Weapon . | . . . . Slashing Weapon . | . . . . Piercing Weapon . | . . . . Special Melee Weapon . | . . . . Unidentified Prototypes . | . . . . Parts Lost 9 | . . 2 7 Power 1 | . . . 1 Propulsion 3 | . . 1 2 Utility 1 | . . 1 . Weapon 4 | . . . 4 Highest Loss Streak 5 | . . 2 5 To Critical Strikes . | . . . . Average Backups 4 | 2 4 6 4 Power 1 | . 1 2 2 Propulsion . | . . . . Utility 1 | . 1 2 2 Weapon 1 | 1 1 2 . Tool/Special . | . . . . Unused Backups 2 | . . . 2 Power 1 | . . . 1 Propulsion . | . . . . Utility 1 | . . . 1 Weapon . | . . . . Tool/Special . | . . . . Average Slot Usage (%) 94 | . 100 97 71 Engine 8 | . 14 5 . Core 4 | . . 8 7 Wheel 24 | . 28 26 10 Device 1 | . 4 . . Storage 14 | . 14 14 14 Protection 11 | . 9 12 14 Ballistic Gun 22 | . 28 17 21 Launcher 5 | . . 10 3 Peak Build Rating 10 | 9 9 10 10 Average Rating 7 | 4 7 9 4 On Entrance 6 | . 9 8 10 Avg Prop Armor Cover (%) . | . . . . Naked Turns 6 | . . . 6 Heaviest Build 16 | 14 16 16 16 Greatest Support 20 | 20 20 20 20 Greatest Overweight (x) 2 | . . 1 2 Average Overweight (x) . | . . . . Largest Inventory Capacity 8 | 8 8 8 8 Average Capacity 7 | 6 8 8 7 Most Carried 8 | 5 6 8 6 Average Carried 4 | 1 4 6 4 Final Capacity 8 | 8 8 8 5 Final Carried 6 | 2 6 6 4 Class Distribution -------------------- 100% | Mutant Dominant Class ---------------- Mutant | -10/Materials Mutant | -10/Mines Mutant | -10/Subcaves Resources | -11 -10 -10 -10 ----------- Run | Yrd Mat Min Sub Matter Collected 484 | 269 95 120 . Remotely . | . . . . Salvage Created 401 | 18 216 127 40 Parts 34 | 6 21 4 3 Haulers Intercepted . | . . . . Recyclers Shooed . | . . . . Parts Field Recycled . | . . . . Retrieved Matter . | . . . . Parts Self-Destructed . | . . . . Prevented . | . . . . Parts Restored . | . . . . Kills | -11 -10 -10 -10 ------- Run | Yrd Mat Min Sub Combat Hostiles Destroyed 15 | . 7 7 1 Guns 10 | . 7 2 1 AOE 5 | . . 5 . Classes Destroyed 6 | 1 2 2 1 Worker 1 | . . 1 . Tunneler 1 | 1 . . . Swarmer 3 | . 3 . . Grunt 4 | . 4 . . Subdweller 1 | . . . 1 Assembled 7 | . . 7 . Thug 1 | . . 1 . Best Kill Streak 5 | 1 5 5 1 Combat Bots Only 5 | . 5 4 1 Max Kills in Single Turn 3 | 1 1 3 1 Gunslinging . | . . . . Exploded 2 | . . 2 . Melee . | . . . . Uniques/NPCs Destroyed . | . . . . Combat | -11 -10 -10 -10 -------- Run | Yrd Mat Min Sub Hostile Shots Fired 101 | . 55 15 31 Missed 36 | . 24 6 6 Hits 65 | . 31 9 25 Melee 6 | . . 6 . Projectile 59 | . 31 3 25 Damage Taken 1010 | . 271 202 537 Core 251 | . 73 . 178 Absorbed by Shields . | . . . . Redirected to Shielding 27 | . . . 27 Core Remaining (%) 100 | 100 . . . Volleys Fired 60 | 2 19 17 22 Largest 2 | 2 2 2 2 Hottest 50 | 40 40 50 40 Shots Fired 100 | 4 38 22 36 Gun 97 | 4 38 19 36 Cannon . | . . . . Launcher 3 | . . 3 . Special . | . . . . Kinetic 97 | 4 38 19 36 Thermal . | . . . . Explosive 3 | . . 3 . Electromagnetic . | . . . . Robot Hit Streak 8 | 1 8 3 8 Robot Miss Streak 3 | 1 3 2 2 Penetration Max . | . . . . Secondary Targets 5 | . 4 . 1 Max Gunslinging Chain 1 | . 1 . 1 Shots Hit Robots 61 | 2 27 12 20 Core Hits 36 | 1 14 15 6 Critical Kills 1 | . 1 . . Critical Parts Destroyed . | . . . . Critical Strikes 1 | . 1 . . Destroy 1 | . 1 . . Melee Attacks . | . . . . Impact . | . . . . Slashing . | . . . . Piercing . | . . . . Sneak Attacks . | . . . . Combat Hostiles . | . . . . Follow-up Attacks . | . . . . Damage Inflicted 857 | 28 276 376 177 Guns 603 | 28 276 122 177 Cannons . | . . . . Explosions 254 | . . 254 . Melee . | . . . . Ramming . | . . . . Kinetic 603 | 28 276 122 177 Thermal . | . . . . Explosive 254 | . . 254 . Electromagnetic . | . . . . Impact . | . . . . Slashing . | . . . . Piercing . | . . . . Highest Corruption 9 | . . 9 9 Average Corruption 9 | . . 9 9 Corruption Purged . | . . . . Corruption Blocked . | . . . . Effects 10 | . . 6 4 Message Errors 1 | . . 1 . Matter Fused 2 | . . 2 . Heat Flow Errors 5 | . . 2 3 Energy Discharges 1 | . . 1 . Weapon Failures 1 | . . . 1 Overload Shots . | . . . . Overflow Damage . | . . . . Projectiles . | . . . . Explosions . | . . . . Melee . | . . . . Knockbacks . | . . . . Impact . | . . . . Kinetic . | . . . . Secondary . | . . . . Self-Inflicted Damage 35 | . . 35 . Shots 2 | . . 2 . Rammed . | . . . . Targets Rammed . | . . . . Kicked . | . . . . Crushed . | . . . . Highest Temperature 283 | . 15 283 218 Average Temperature 63 | . 6 121 86 Received Heat Transfer 36 | . 36 . . Siege Activations . | . . . . Martial Activations . | . . . . Shielding Activations . | . . . . Robots Disrupted . | . . . . Combat Hostiles . | . . . . Robots Corrupted . | . . . . Combat Hostiles . | . . . . Parts Fried . | . . . . Impact Corruptions . | . . . . Robots Melted . | . . . . Combat Hostiles . | . . . . Parts Melted . | . . . . Heat Transferred . | . . . . Parts Sabotaged . | . . . . Parts Stolen . | . . . . Parts Stripped . | . . . . Power Chain Reactions . | . . . . Alert | -11 -10 -10 -10 ------- Run | Yrd Mat Min Sub Maximum Alert Level . | . . . . Low Security (%) 100 | 100 100 100 . Level 1 . | . . . . Level 2 . | . . . . Level 3 . | . . . . Level 4 . | . . . . Level 5 . | . . . . High Security . | . . . . Max Security . | . . . . Peak Influence 130 | 5 130 43 . Initial 42 | . . 42 . Average 25 | . 45 11 . Influence Increases 205 | 5 172 28 . Destroy 0b10 Robot/C 140 | . 140 . . Destroy 0b10 Robot/NC 10 | 5 . 5 . Destroy Leader 30 | . 30 . . Successful Hack 2 | . 2 . . Destroy Structure 23 | . . 23 . Influence Decreases 205 | 5 62 138 . Entered New Map 68 | . . 68 . Time Decay 117 | 5 62 50 . Lost Part 20 | . . 20 . Squads Dispatched 1 | . 1 . . Investigation . | . . . . Extermination . | . . . . Reinforcement 1 | . 1 . . Assault . | . . . . Garrison . | . . . . Intercept . | . . . . Searches Triggered . | . . . . Construction Impeded . | . . . . Haulers Reinforced . | . . . . Active Scanning Responses . | . . . . Cargo Convoy Interrupts . | . . . . Stealth | -11 -10 -10 -10 --------- Run | Yrd Mat Min Sub Distress Signals . | . . . . Communications Jammed . | . . . . Distress Signals . | . . . . Times Spotted 23 | . 9 12 2 Peak Tracking Total 7 | . 6 7 2 Tactical Retreats 1 | . . 1 . Traps | -11 -10 -10 -10 ------- Run | Yrd Mat Min Sub Traps Triggered . | . . . . Indirectly . | . . . . Trap Hack Attempts . | . . . . Triggered . | . . . . Disarmed . | . . . . Reprogrammed . | . . . . Reused . | . . . . Traps Extracted . | . . . . Installed . | . . . . Triggered . | . . . . Machines | -11 -10 -10 -10 ---------- Run | Yrd Mat Min Sub Machines Disabled . | . . . . Max in Single Turn . | . . . . Machines Repaired . | . . . . Machines Dismantled . | . . . . Machines Sabotaged . | . . . . Overloaded Fab Kills . | . . . . Hacking | -11 -10 -10 -10 --------- Run | Yrd Mat Min Sub Machines Accessed 1 | . 1 . . Terminals 1 | . 1 . . Fabricators . | . . . . Repair Stations . | . . . . Recycling Units . | . . . . Scanalyzers . | . . . . Garrison Access . | . . . . Total Hacks 2 | . 2 . . Successful 1 | . 1 . . Failed 1 | . 1 . . Catastrophic . | . . . . Database Lockouts . | . . . . Manual 1 | . 1 . . Terminals 2 | . 2 . . Fabricators . | . . . . Repair Stations . | . . . . Recycling Units . | . . . . Scanalyzers . | . . . . Garrison Access . | . . . . Terminal Hacks 1 | . 1 . . Record 1 | . 1 . . Fabricator Hacks . | . . . . Repair Station Hacks . | . . . . Recycling Unit Hacks . | . . . . Scanalyzer . | . . . . Garrison Access Hacks . | . . . . Unauthorized Hacks . | . . . . Terminals . | . . . . Fabricators . | . . . . Repair Stations . | . . . . Recycling Units . | . . . . Scanalyzers . | . . . . Garrison Access . | . . . . Data Cores Recovered . | . . . . Used . | . . . . Hacking Detections . | . . . . Full Trace Events . | . . . . Feedback Events . | . . . . Feedback Blocked . | . . . . Robot Schematics Acquired . | . . . . Robots Built . | . . . . Authchips . | . . . . Time . | . . . . Total Robot Build Rating . | . . . . Part Schematics Acquired . | . . . . Parts Built . | . . . . Authchips . | . . . . Time . | . . . . Total Part Build Rating . | . . . . Part Studies Acquired . | . . . . Parts Repaired . | . . . . Time . | . . . . Parts Recycled . | . . . . Recycled Matter . | . . . . Retrieved Matter . | . . . . Retrieved Components . | . . . . Parts Scanalyzed . | . . . . Part Schematics Acquired . | . . . . Parts Damaged . | . . . . Bothacking | -11 -10 -10 -10 ------------ Run | Yrd Mat Min Sub Used RIF Installer . | . . . . Robots Hacked . | . . . . Non-combat . | . . . . Combat . | . . . . Robot Hacks Applied . | . . . . Relay Couplers Released . | . . . . Fabnet Peak Effective % . | . . . . Robots Rewired . | . . . . Allies Hacked . | . . . . Hacks Repelled . | . . . . Allies | -11 -10 -10 -10 -------- Run | Yrd Mat Min Sub Total Allies 2 | . . 2 . Largest Group 2 | . . 2 . Highest-Rated Group 41 | . . 41 . Highest-Rated Ally 31 | . . 31 . Total Orders . | . . . . Ally Attacks 8 | . . 8 . Total Damage 142 | . . 142 . Kills 4 | . . 4 . Allies Corrupted . | . . . . Allies Melted . | . . . . Intel | -11 -10 -10 -10 ------- Run | Yrd Mat Min Sub Active Infowar (turns) 71 | 13 58 . . Terrain 71 | 13 58 . . Robot Analysis Total . | . . . . Derelict Logs Recovered 1 | . . 1 . Drone Launches . | . . . . Drone Recoveries . | . . . . Exploration | -11 -10 -10 -10 ------------- Run | Yrd Mat Min Sub Turns Passed 537 | 53 205 208 71 Spaces Moved 429 | 42 183 186 18 Core 24 | 8 . . 16 Treads . | . . . . Legs . | . . . . Wheels 405 | 34 183 186 2 Hover . | . . . . Flight . | . . . . Fastest Speed 50 | 50 80 80 50 Average Speed 79 | 74 80 80 81 Slowest Speed 150 | 80 80 95 150 Overloaded Moves . | . . . . Propulsion Burnouts . | . . . . Robots Hopped . | . . . . Potential Cave-ins . | . . . . Cave-ins Triggered . | . . . . Exploration Rate (%) 18 | 3 38 29 3 Regions Visited 3 Branch Regions 2 Pre-discovered Areas . | . . . . Known Exits Taken . | . . . . Unknown Exits Taken 3 | 1 1 1 . Scrap Searched 1 | . . 1 . Spaces Dug . | . . . . Terrain Destroyed 29 | . . 29 . Melee . | . . . . Projectile . | . . . . AOE 29 | . . 29 . Terrain Rammed . | . . . . Walls Destroyed . | . . . . Machines Disabled . | . . . . Actions | -11 -10 -10 -10 --------- Run | Yrd Mat Min Sub Total 531 | 59 206 221 45 Wait 13 | . . 13 . Move 426 | 41 182 185 18 Hop . | . . . . Pick Up 15 | 9 4 2 . Fast Attach . | . . . . Attach 11 | 7 . 2 2 Detach 1 | . . . 1 Swap 3 | . 1 2 . Drop 2 | . . . 2 Fire 60 | 2 19 17 22 Melee . | . . . . Ram . | . . . . Kick . | . . . . Crush . | . . . . Escape Stasis . | . . . . Rewire . | . . . . Trap . | . . . . Miscellaneous . | . . . . Route ------- -11/Scrapyard -10/Materials (discovered 2 exits: [*Mat] / [*Min]) -10/Mines (discovered 2 exits: [*Mat] / [*Sub]) -10/Subcaves (discovered 1 exit: [*Mat]) History --------- Turn | Location | Event 31 | -11/Scrapyard | Discovered new exit (range 15) 54 | -11/Scrapyard | Entered Materials 127 | -10/Materials | Discovered new exit (range 15) 215 | -10/Materials | Discovered new exit (range 12) 259 | -10/Materials | Entered Mines 260 | -10/Mines | Met a Derelict bent on vengeance 263 | -10/Mines | Discovered new exit (range 10) 269 | -10/Mines | Assembled infested the area 304 | -10/Mines | Build established: Mutant 355 | -10/Mines | Learned 2 Materials zone layouts 460 | -10/Mines | Discovered new exit (range 9) 467 | -10/Mines | Entered Subcaves 497 | -10/Subcaves | Core integrity fell below 50% 521 | -10/Subcaves | Lost 5 parts (1p2n2w) 535 | -10/Subcaves | Core integrity fell below 20% 535 | -10/Subcaves | Discovered new exit (range 11) 538 | -10/Subcaves | Destroyed by MV-J44(R) with Subdweller Machine Gun Last Messages --------------- AMBIENT_HEAT=-10 GOAL=ESCAPE Assault Rifle destroyed. Grenade Launcher destroyed. System corrupted: Heat flow error (+115). Wheel destroyed. 7V-ZN6(R) destroyed. Switching to secondary target: MV-J44(R). Lgt. Nuclear Core destroyed. Subatomizers dissect the Disposable Heat Sink. System corrupted: Lgt. Assault Rifle jammed. System corrupted: Heat flow error (+263). Subatomizers dissect the Disposable Heat Sink. Lgt. Assault Rifle destroyed. Subatomizers dissect the Disposable Heat Sink. Lgt. Assault Rifle destroyed. Dropped Sml. Storage Unit. EXIT=FOUND System corrupted: Heat flow error (+110). Dropped Imp. Terrain Scanner. Map ----- +----------------------------------------------------+ | ?????????????????? ?????????????????????????????? | | ?????????????????? ????????????????????????????? | | ??????????????????? ???#????????????????????????? | | ?????????????????? ?## ????????????????????????? | | ??????????????????? ## ????????????????????????? | | ??????????????????? ????????????????????????? | | ?????????????#?????? ????????????????????????? | | ????????????# ????? #????????????????????????? | | ???????????# ???## ##???????????????????????? | | ??????????? ??# #???????????????????????? | | ???????????# ?# ##??????????????????????? | | ???????????# ## #??????????????????????? | | ??????????## # # #??????????????????????? | | ??????????# #####??????????????????? | | ?????????# # #??????????????????? | | ????????????????## ## ! #??????????????????? | | ?????????????????##??# ####??????????????????? | | ?????????????????????## % ##?????????????????????? | | ??????????????????????# #??????????????????????? | | ??????????????????????## #??????????????????????? | | ???????????????????????# #??????????????????????? | | ??????????????????????## ##?????????????????????? | | ??????????????????????# R ###???????????????????? | | ??????????????????????## ##??????????????????? | | ?????????????????????## ! #??????????????????? | | ?????????????????????# @ #??????????????????? | | ?????????????????????# !%! #??????????????????? | | ????????????????????# ! #??????????????????? | | ????????????????????# ##??????????????????? | | ??????????????????? ###???????????????????? | | ?????????????????? < ##?????????????????????? | | ?????????????????# #??????????????????????? | | ?????????????????## ##??????????????????????? | | ??????????????????# ????????????????????????? | | ??????????????????## ????????????????????????? | | ???????????????????# ????????????????????????? | | ??????????????????? ????????????????????????? | | ??????????????????? ????????????????????????? | | ??????????????????## ????????????????????????? | | ?????????????????????# ????????????????????????? | | ??????????????????????? ?????????????????????????? | | ?????????????????????????????????????????????????? | | ?????????????????????????????????????????????????? | | ?????????????????????????????????????????????????? | | ?????????????????????????????????????????????????? | | ?????????????????????????????????????????????????? | | ?????????????????????????????????????????????????? | | ?????????????????????????????????????????????????? | | ?????????????????????????????????????????????????? | | ?????????????????????????????????????????????????? | +----------------------------------------------------+ Best States ------------- Heat Dissipation 25 Energy Generation 14 Energy Capacity 250 Matter Stores 300 Matter Capacity 300 Sight Range 16 Terrain Scan Range 16 Terrain Scan Density 10 Armor Coverage 150 Core Shielding 20 Evasion (%) 44 Item Schematics ----------------- None Robot Schematics ------------------ None Fabricated ------------ Nothing Repaired ---------- Nothing Studied --------- None Alien Tech Used ----------------- None Achievements -------------- None Challenges ------------ None Game ------ Seed KineticScrapoidPlating Manual? 0 Play Time 00:06:36 Cumulative 44.0 hours Start 2026.09.15 @ 18:50:02 End 2026.09.15 @ 18:56:52 Sessions 1 Manual Loads 0 Difficulty Rogue Special Mode None Game No. 100 Rogue 100 Adventurer 0 Explorer 0 Win Type - Total 0 Types 0/0/0/0/0/0/0/0/0/0 Lore% 24 Gallery% 33 Achievement% 22 Wizard Run 0 Options --------- Layout 2 ASCII 0 Keyboard 0 Movement Numpad Keybinds 0 Fullscreen 1 Font 24/Smallcaps Map View 50x44 Zoom Use 0% Tactical HUD 0 Map Filters NONE Filters NONE Steam 1 RUN: 59ef47eb-52da-4edb-854d-e8b4eec17a4d